[Event "Titled Tuesday Blitz November 29 Late 2022"]
[White "Melikyan, Gnel"]
[Black "Maksimovic, Bojan"]
[WhiteFideId "54109990"]
[BlackFideId "14408120"]
[WhiteElo "2138"]
[BlackElo "2447"]
[Result "1/2-1/2"]
[Round "06"]
[TimeControl "180+1"]
[Date "2022.11.30"]
[WhiteClock "0:00:15"]
[BlackClock "0:00:03"]

1. d4 {[%clk 0:03:00]}  Nf6 {[%clk 0:02:59]} 2. c4 {[%clk 0:03:00]}  g6 {[%clk 0:02:59]} 3. Nc3 {[%clk 0:02:56]}  Bg7 {[%clk 0:03:00]} 4. e4 {[%clk 0:02:56]}  d6 {[%clk 0:02:59]} 5. h3 {[%clk 0:02:55]}  Nbd7 {[%clk 0:02:56]} 6. Be3 {[%clk 0:02:55]}  e5 {[%clk 0:02:56]} 7. d5 {[%clk 0:02:54]}  Nc5 {[%clk 0:02:56]} 8. f3 {[%clk 0:02:54]}  Nh5 {[%clk 0:02:53]} 9. Nge2 {[%clk 0:02:52]}  a5 {[%clk 0:02:40]} 10. g4 {[%clk 0:02:51]}  Nf4 {[%clk 0:02:40]} 11. Nxf4 {[%clk 0:02:31]}  exf4 {[%clk 0:02:39]} 12. Bxf4 {[%clk 0:02:26]}  Qh4+ {[%clk 0:02:39]} 13. Ke2 {[%clk 0:02:25]}  h5 {[%clk 0:02:13]} 14. Bg2 {[%clk 0:02:21]}  Be5 {[%clk 0:01:48]} 15. Be3 {[%clk 0:02:17]}  Qg3 {[%clk 0:01:32]} 16. Qg1 {[%clk 0:02:12]}  hxg4 {[%clk 0:01:18]} 17. hxg4 {[%clk 0:02:10]}  Rxh1 {[%clk 0:01:12]} 18. Bxh1 {[%clk 0:02:07]}  Qxg1 {[%clk 0:00:54]} 19. Rxg1 {[%clk 0:02:04]}  b6 {[%clk 0:00:54]} 20. f4 {[%clk 0:01:53]}  Bxc3 {[%clk 0:00:54]} 21. bxc3 {[%clk 0:01:52]}  Ba6 {[%clk 0:00:54]} 22. e5 {[%clk 0:01:38]}  Bxc4+ {[%clk 0:00:53]} 23. Kd2 {[%clk 0:01:33]}  Ke7 {[%clk 0:00:46]} 24. f5 {[%clk 0:01:12]}  Rh8 {[%clk 0:00:45]} 25. Bg5+ {[%clk 0:01:06]}  Ke8 {[%clk 0:00:39]} 26. e6 {[%clk 0:01:02]}  Rh2+ {[%clk 0:00:35]} 27. Ke3 {[%clk 0:00:48]}  Rh3+ {[%clk 0:00:30]} 28. Kd2 {[%clk 0:00:33]}  Rd3+ {[%clk 0:00:24]} 29. Kc2 {[%clk 0:00:27]}  Bxd5 {[%clk 0:00:22]} 30. Bxd5 {[%clk 0:00:25]}  Rxd5 {[%clk 0:00:22]} 31. Rh1 {[%clk 0:00:22]}  fxe6 {[%clk 0:00:21]} 32. Rh8+ {[%clk 0:00:22]}  Kd7 {[%clk 0:00:21]} 33. Rd8+ {[%clk 0:00:17]}  Kc6 {[%clk 0:00:20]} 34. f6 {[%clk 0:00:18]}  Rxg5 {[%clk 0:00:13]} 35. f7 {[%clk 0:00:18]}  Nd7 {[%clk 0:00:04]} 36. Rxd7 {[%clk 0:00:19]}  Kxd7 {[%clk 0:00:05]} 37. f8=Q {[%clk 0:00:19]}  Rxg4 {[%clk 0:00:04]} 38. Qf7+ {[%clk 0:00:18]}  Kc6 {[%clk 0:00:02]} 39. Qxe6 {[%clk 0:00:18]}  Rg5 {[%clk 0:00:02]} 40. Qe4+ {[%clk 0:00:16]}  Kd7 {[%clk 0:00:02]} 41. Qf4 {[%clk 0:00:14]}  Rf5 {[%clk 0:00:02]} 42. Qg4 {[%clk 0:00:14]}  Kc6 {[%clk 0:00:01]} 43. Qxg6 {[%clk 0:00:14]}  Rc5 {[%clk 0:00:02]} 44. Kb3 {[%clk 0:00:14]}  Kb7 {[%clk 0:00:02]} 45. a4 {[%clk 0:00:14]}  Kb8 {[%clk 0:00:02]} 46. Qe4 {[%clk 0:00:14]}  Kc8 {[%clk 0:00:03]} 47. c4 {[%clk 0:00:13]}  Kb8 {[%clk 0:00:03]} 48. Kc3 {[%clk 0:00:13]}  Ka7 {[%clk 0:00:03]} 49. Kb3 {[%clk 0:00:13]}  Kb8 {[%clk 0:00:04]} 50. Kc3 {[%clk 0:00:13]}  Ka7 {[%clk 0:00:04]} 51. Kb3 {[%clk 0:00:13]}  Re5 {[%clk 0:00:04]} 52. Qc6 {[%clk 0:00:12]}  Kb8 {[%clk 0:00:04]} 53. Kc3 {[%clk 0:00:12]}  Re3+ {[%clk 0:00:04]} 54. Kd4 {[%clk 0:00:12]}  Re5 {[%clk 0:00:04]} 55. Qd7 {[%clk 0:00:12]}  Kb7 {[%clk 0:00:04]} 56. Qf7 {[%clk 0:00:10]}  Rg5 {[%clk 0:00:03]} 57. Qf3+ {[%clk 0:00:10]}  Kb8 {[%clk 0:00:03]} 58. Qf8+ {[%clk 0:00:11]}  Kb7 {[%clk 0:00:04]} 59. Qf3+ {[%clk 0:00:11]}  Kb8 {[%clk 0:00:04]} 60. Qf8+ {[%clk 0:00:11]}  Ka7 {[%clk 0:00:04]} 61. Qe7 {[%clk 0:00:12]}  Rc5 {[%clk 0:00:05]} 62. Qd7 {[%clk 0:00:12]}  Kb7 {[%clk 0:00:05]} 63. Qe7 {[%clk 0:00:12]}  Re5 {[%clk 0:00:06]} 64. Qg7 {[%clk 0:00:12]}  Re2 {[%clk 0:00:05]} 65. Qf7 {[%clk 0:00:11]}  Rd2+ {[%clk 0:00:05]} 66. Kc3 {[%clk 0:00:11]}  Re2 {[%clk 0:00:05]} 67. Qd5+ {[%clk 0:00:11]}  Kb8 {[%clk 0:00:05]} 68. Kd3 {[%clk 0:00:11]}  Re5 {[%clk 0:00:05]} 69. Qc6 {[%clk 0:00:12]}  Rc5 {[%clk 0:00:03]} 70. Qe8+ {[%clk 0:00:12]}  Kb7 {[%clk 0:00:04]} 71. Kd4 {[%clk 0:00:13]}  Ka7 {[%clk 0:00:03]} 72. Qd7 {[%clk 0:00:13]}  Kb7 {[%clk 0:00:04]} 73. Qg7 {[%clk 0:00:13]}  Re5 {[%clk 0:00:03]} 74. Qg2+ {[%clk 0:00:14]}  Kb8 {[%clk 0:00:03]} 75. Qg7 {[%clk 0:00:14]}  Kb7 {[%clk 0:00:03]} 76. Qg2+ {[%clk 0:00:14]}  Kb8 {[%clk 0:00:03]} 77. Qg8+ {[%clk 0:00:15]}  Kb7 {[%clk 0:00:03]} 78. Qg2+ {[%clk 0:00:15]} 1/2-1/2


[Site "https://www.chess.com"]

[Event "Titled Tuesday Blitz November 29 Late 2022"]
[White "Mohammed, Zozek Salah Mohammed"]
[Black "Di Berardino, Diego Rafael"]
[WhiteFideId "4803361"]
[BlackFideId "2105446"]
[WhiteElo "2199"]
[BlackElo "2442"]
[Result "0-1"]
[Round "06"]
[TimeControl "180+1"]
[Date "2022.11.30"]
[WhiteClock "0:00:02"]
[BlackClock "0:00:05"]

1. d4 {[%clk 0:02:56]}  d5 {[%clk 0:02:58]} 2. c4 {[%clk 0:02:55]}  e6 {[%clk 0:02:58]} 3. Nf3 {[%clk 0:02:54]}  Nf6 {[%clk 0:02:57]} 4. g3 {[%clk 0:02:54]}  Be7 {[%clk 0:02:55]} 5. Bg2 {[%clk 0:02:54]}  O-O {[%clk 0:02:56]} 6. O-O {[%clk 0:02:54]}  dxc4 {[%clk 0:02:57]} 7. Qc2 {[%clk 0:02:51]}  a6 {[%clk 0:02:57]} 8. Qxc4 {[%clk 0:02:51]}  b5 {[%clk 0:02:57]} 9. Qc2 {[%clk 0:02:51]}  Bb7 {[%clk 0:02:57]} 10. Bd2 {[%clk 0:02:49]}  Be4 {[%clk 0:02:57]} 11. Qb3 {[%clk 0:02:44]}  c5 {[%clk 0:02:45]} 12. dxc5 {[%clk 0:02:29]}  Nbd7 {[%clk 0:02:44]} 13. Bb4 {[%clk 0:02:20]}  a5 {[%clk 0:02:13]} 14. Bd2 {[%clk 0:02:11]}  b4 {[%clk 0:02:02]} 15. c6 {[%clk 0:01:52]}  Bxc6 {[%clk 0:02:02]} 16. Rc1 {[%clk 0:01:53]}  Bd5 {[%clk 0:01:45]} 17. Qd1 {[%clk 0:01:49]}  Rc8 {[%clk 0:01:34]} 18. Be3 {[%clk 0:01:44]}  Rxc1 {[%clk 0:01:28]} 19. Qxc1 {[%clk 0:01:43]}  Ng4 {[%clk 0:01:22]} 20. Bd4 {[%clk 0:01:41]}  e5 {[%clk 0:01:15]} 21. Be3 {[%clk 0:01:38]}  Nxe3 {[%clk 0:01:10]} 22. Qxe3 {[%clk 0:01:38]}  Bc5 {[%clk 0:01:10]} 23. Qg5 {[%clk 0:01:22]}  Qb6 {[%clk 0:00:50]} 24. e3 {[%clk 0:01:22]}  f6 {[%clk 0:00:45]} 25. Qf5 {[%clk 0:01:18]}  Be6 {[%clk 0:00:25]} 26. Qd3 {[%clk 0:01:13]}  Rd8 {[%clk 0:00:26]} 27. Nbd2 {[%clk 0:01:08]}  Nb8 {[%clk 0:00:21]} 28. Qe2 {[%clk 0:01:08]}  a4 {[%clk 0:00:17]} 29. Rc1 {[%clk 0:01:05]}  Bxa2 {[%clk 0:00:15]} 30. Ne4 {[%clk 0:00:58]}  Be7 {[%clk 0:00:15]} 31. Nfd2 {[%clk 0:00:49]}  Qa6 {[%clk 0:00:13]} 32. Qh5 {[%clk 0:00:43]}  Bf7 {[%clk 0:00:11]} 33. Qg4 {[%clk 0:00:41]}  a3 {[%clk 0:00:10]} 34. bxa3 {[%clk 0:00:38]}  bxa3 {[%clk 0:00:11]} 35. Bf1 {[%clk 0:00:37]}  Qa5 {[%clk 0:00:11]} 36. Nc4 {[%clk 0:00:33]}  Qa7 {[%clk 0:00:07]} 37. Nc3 {[%clk 0:00:27]}  Qa6 {[%clk 0:00:01]} 38. Nxe5 {[%clk 0:00:22]}  Qe6 {[%clk 0:00:02]} 39. Qxe6 {[%clk 0:00:19]}  Bxe6 {[%clk 0:00:03]} 40. Nc4 {[%clk 0:00:18]}  Rc8 {[%clk 0:00:03]} 41. Na2 {[%clk 0:00:13]}  Nd7 {[%clk 0:00:03]} 42. Rc3 {[%clk 0:00:10]}  Kf8 {[%clk 0:00:03]} 43. f4 {[%clk 0:00:04]}  f5 {[%clk 0:00:04]} 44. Kf2 {[%clk 0:00:04]}  Bf6 {[%clk 0:00:04]} 45. Rxa3 {[%clk 0:00:03]}  Bxc4 {[%clk 0:00:03]} 46. Bxc4 {[%clk 0:00:03]}  Rxc4 {[%clk 0:00:04]} 47. Ra7 {[%clk 0:00:02]}  Ke7 {[%clk 0:00:05]} 0-1


[Site "https://www.chess.com"]

[Event "Titled Tuesday Blitz November 29 Late 2022"]
[White "Naroditsky, Daniel"]
[Black "Kuzmicz, Krystian"]
[WhiteFideId "2026961"]
[BlackFideId "1119125"]
[WhiteElo "2628"]
[BlackElo "2380"]
[Result "1-0"]
[Round "06"]
[TimeControl "180+1"]
[Date "2022.11.30"]
[WhiteClock "0:00:44"]
[BlackClock "0:00:04"]

1. e4 {[%clk 0:03:00]}  c5 {[%clk 0:02:59]} 2. Nf3 {[%clk 0:03:01]}  e6 {[%clk 0:03:00]} 3. d4 {[%clk 0:03:00]}  cxd4 {[%clk 0:03:01]} 4. Nxd4 {[%clk 0:03:01]}  Nf6 {[%clk 0:03:00]} 5. Nc3 {[%clk 0:03:01]}  Nc6 {[%clk 0:03:01]} 6. g3 {[%clk 0:03:01]}  Qb6 {[%clk 0:02:59]} 7. Nb3 {[%clk 0:03:00]}  Bb4 {[%clk 0:02:59]} 8. Bg2 {[%clk 0:03:01]}  d5 {[%clk 0:02:59]} 9. exd5 {[%clk 0:02:59]}  Nxd5 {[%clk 0:02:59]} 10. Bd2 {[%clk 0:02:59]}  Nxc3 {[%clk 0:02:27]} 11. bxc3 {[%clk 0:03:00]}  Be7 {[%clk 0:02:27]} 12. O-O {[%clk 0:03:00]}  O-O {[%clk 0:02:20]} 13. Be3 {[%clk 0:03:00]}  Qc7 {[%clk 0:02:18]} 14. Qe2 {[%clk 0:02:56]}  e5 {[%clk 0:02:10]} 15. Rad1 {[%clk 0:02:54]}  Be6 {[%clk 0:02:06]} 16. Nc5 {[%clk 0:02:50]}  Bxc5 {[%clk 0:02:03]} 17. Bxc5 {[%clk 0:02:51]}  Rfd8 {[%clk 0:02:03]} 18. a3 {[%clk 0:02:50]}  Rxd1 {[%clk 0:01:58]} 19. Rxd1 {[%clk 0:02:51]}  Rd8 {[%clk 0:01:58]} 20. Re1 {[%clk 0:02:51]}  Bd5 {[%clk 0:01:38]} 21. Bxd5 {[%clk 0:02:41]}  Rxd5 {[%clk 0:01:38]} 22. Be3 {[%clk 0:02:42]}  Qa5 {[%clk 0:01:27]} 23. Qc4 {[%clk 0:02:41]}  Rd7 {[%clk 0:01:16]} 24. Bc5 {[%clk 0:02:41]}  b6 {[%clk 0:01:10]} 25. Be3 {[%clk 0:02:11]}  Qd5 {[%clk 0:01:08]} 26. Qg4 {[%clk 0:02:11]}  Rd8 {[%clk 0:00:57]} 27. Bh6 {[%clk 0:02:06]}  g6 {[%clk 0:00:53]} 28. Qh4 {[%clk 0:02:04]}  Rd6 {[%clk 0:00:47]} 29. Be3 {[%clk 0:01:46]}  f6 {[%clk 0:00:45]} 30. Qg4 {[%clk 0:01:40]}  Qe6 {[%clk 0:00:39]} 31. Qa4 {[%clk 0:01:39]}  Qd5 {[%clk 0:00:37]} 32. h4 {[%clk 0:01:38]}  Qf3 {[%clk 0:00:36]} 33. Kh2 {[%clk 0:01:31]}  h5 {[%clk 0:00:36]} 34. Qa6 {[%clk 0:01:30]}  Qf5 {[%clk 0:00:33]} 35. Qb7 {[%clk 0:01:17]}  Qd7 {[%clk 0:00:34]} 36. Qa6 {[%clk 0:01:17]}  Ne7 {[%clk 0:00:32]} 37. c4 {[%clk 0:01:13]}  Nf5 {[%clk 0:00:30]} 38. c5 {[%clk 0:01:14]}  bxc5 {[%clk 0:00:30]} 39. Qc4+ {[%clk 0:01:14]}  Qe6 {[%clk 0:00:28]} 40. Qxc5 {[%clk 0:01:15]}  Rc6 {[%clk 0:00:27]} 41. Qxa7 {[%clk 0:01:13]}  Rxc2 {[%clk 0:00:26]} 42. Rd1 {[%clk 0:01:10]}  Qc8 {[%clk 0:00:16]} 43. Bb6 {[%clk 0:01:10]}  Nd4 {[%clk 0:00:13]} 44. Bxd4 {[%clk 0:01:05]}  exd4 {[%clk 0:00:13]} 45. Qxd4 {[%clk 0:01:05]}  Rc6 {[%clk 0:00:12]} 46. a4 {[%clk 0:00:55]}  Kf7 {[%clk 0:00:11]} 47. a5 {[%clk 0:00:52]}  Qe6 {[%clk 0:00:12]} 48. Qa7+ {[%clk 0:00:49]}  Ke8 {[%clk 0:00:10]} 49. Rd3 {[%clk 0:00:47]}  Ra6 {[%clk 0:00:05]} 50. Qb8+ {[%clk 0:00:44]}  Kf7 {[%clk 0:00:04]} 51. Qb7+ {[%clk 0:00:44]}  Ke8 {[%clk 0:00:04]} 52. Re3 {[%clk 0:00:44]} 1-0


[Site "https://www.chess.com"]

[Event "Titled Tuesday Blitz November 29 Late 2022"]
[White "Necromon"]
[Black "Araujo Sanchez, Josue"]
[BlackFideId "6416896"]
[WhiteElo "2492"]
[BlackElo "2370"]
[Result "0-1"]
[Round "06"]
[TimeControl "180+1"]
[Date "2022.11.30"]
[WhiteClock "0:00:12"]
[BlackClock "0:01:26"]

1. Nf3 {[%clk 0:02:51]}  d5 {[%clk 0:02:59]} 2. g3 {[%clk 0:02:51]}  c6 {[%clk 0:02:57]} 3. Bg2 {[%clk 0:02:51]}  Nf6 {[%clk 0:02:57]} 4. O-O {[%clk 0:02:49]}  Bf5 {[%clk 0:02:58]} 5. d4 {[%clk 0:02:49]}  e6 {[%clk 0:02:58]} 6. c4 {[%clk 0:02:49]}  Nbd7 {[%clk 0:02:57]} 7. Nc3 {[%clk 0:02:47]}  Be7 {[%clk 0:02:52]} 8. Qb3 {[%clk 0:02:26]}  Qb6 {[%clk 0:02:49]} 9. c5 {[%clk 0:02:24]}  Qa6 {[%clk 0:02:45]} 10. Re1 {[%clk 0:02:12]}  O-O {[%clk 0:02:41]} 11. Bf1 {[%clk 0:02:11]}  b5 {[%clk 0:02:13]} 12. cxb6 {[%clk 0:02:09]}  Qxb6 {[%clk 0:02:10]} 13. Qd1 {[%clk 0:01:46]}  c5 {[%clk 0:02:03]} 14. dxc5 {[%clk 0:01:46]}  Nxc5 {[%clk 0:02:01]} 15. Nd4 {[%clk 0:01:45]}  Bg6 {[%clk 0:02:00]} 16. Be3 {[%clk 0:01:18]}  Qxb2 {[%clk 0:01:57]} 17. Nc6 {[%clk 0:01:18]}  Bd6 {[%clk 0:01:57]} 18. Bd4 {[%clk 0:01:18]}  Qb7 {[%clk 0:01:54]} 19. Na5 {[%clk 0:00:54]}  Qe7 {[%clk 0:01:52]} 20. Nc6 {[%clk 0:00:53]}  Qc7 {[%clk 0:01:38]} 21. Nb4 {[%clk 0:00:46]}  a5 {[%clk 0:01:35]} 22. Bxf6 {[%clk 0:00:23]}  gxf6 {[%clk 0:01:31]} 23. Nbxd5 {[%clk 0:00:22]}  exd5 {[%clk 0:01:29]} 24. Nxd5 {[%clk 0:00:22]}  Qd8 {[%clk 0:01:30]} 25. Qd4 {[%clk 0:00:21]}  Nd7 {[%clk 0:01:26]} 26. Red1 {[%clk 0:00:19]}  Be5 {[%clk 0:01:24]} 27. Qc4 {[%clk 0:00:16]}  Bxa1 {[%clk 0:01:25]} 28. Rxa1 {[%clk 0:00:16]}  Rc8 {[%clk 0:01:25]} 29. Qxc8 {[%clk 0:00:16]}  Qxc8 {[%clk 0:01:24]} 30. Ne7+ {[%clk 0:00:17]}  Kg7 {[%clk 0:01:25]} 31. Nxc8 {[%clk 0:00:18]}  Rxc8 {[%clk 0:01:26]} 32. Bh3 {[%clk 0:00:18]}  Rc7 {[%clk 0:01:25]} 33. Rd1 {[%clk 0:00:18]}  Nb6 {[%clk 0:01:25]} 34. Rd6 {[%clk 0:00:17]}  Nc4 {[%clk 0:01:25]} 35. Ra6 {[%clk 0:00:16]}  Bb1 {[%clk 0:01:25]} 36. a3 {[%clk 0:00:14]}  Bc2 {[%clk 0:01:25]} 37. Kg2 {[%clk 0:00:14]}  a4 {[%clk 0:01:25]} 38. Bg4 {[%clk 0:00:13]}  Nxa3 {[%clk 0:01:26]} 39. e3 {[%clk 0:00:12]}  Bb3 {[%clk 0:01:26]} 0-1


[Site "https://www.chess.com"]

[Event "Titled Tuesday Blitz November 29 Late 2022"]
[White "Nepo"]
[Black "Goncalves, Davi Sulzbacher"]
[BlackFideId "2154510"]
[WhiteElo "2207"]
[BlackElo "2182"]
[Result "1-0"]
[Round "06"]
[TimeControl "180+1"]
[Date "2022.11.30"]
[WhiteClock "0:00:29"]
[BlackClock "0:00:07"]

1. e4 {[%clk 0:02:55]}  c6 {[%clk 0:02:59]} 2. d4 {[%clk 0:02:53]}  d5 {[%clk 0:03:00]} 3. Nc3 {[%clk 0:02:50]}  dxe4 {[%clk 0:03:00]} 4. Nxe4 {[%clk 0:02:38]}  Nd7 {[%clk 0:02:59]} 5. Nf3 {[%clk 0:02:30]}  Ngf6 {[%clk 0:02:59]} 6. Bd3 {[%clk 0:02:31]}  Nxe4 {[%clk 0:02:56]} 7. Bxe4 {[%clk 0:02:32]}  Nf6 {[%clk 0:02:56]} 8. Bd3 {[%clk 0:02:25]}  Bg4 {[%clk 0:02:55]} 9. c3 {[%clk 0:02:18]}  Qd5 {[%clk 0:02:51]} 10. Be2 {[%clk 0:02:10]}  e6 {[%clk 0:02:39]} 11. h3 {[%clk 0:02:07]}  Bh5 {[%clk 0:02:37]} 12. Be3 {[%clk 0:02:05]}  Be7 {[%clk 0:02:35]} 13. O-O {[%clk 0:02:04]}  O-O {[%clk 0:02:26]} 14. Ne5 {[%clk 0:01:55]}  Bxe2 {[%clk 0:02:25]} 15. Qxe2 {[%clk 0:01:53]}  c5 {[%clk 0:02:15]} 16. Nf3 {[%clk 0:01:47]}  Rfd8 {[%clk 0:02:07]} 17. Rfd1 {[%clk 0:01:29]}  Qe4 {[%clk 0:01:53]} 18. Qd3 {[%clk 0:01:19]}  cxd4 {[%clk 0:01:48]} 19. Qxe4 {[%clk 0:01:17]}  Nxe4 {[%clk 0:01:47]} 20. Rxd4 {[%clk 0:01:18]}  Rxd4 {[%clk 0:01:45]} 21. Bxd4 {[%clk 0:01:19]}  f6 {[%clk 0:01:43]} 22. Re1 {[%clk 0:01:18]}  f5 {[%clk 0:01:38]} 23. Ne5 {[%clk 0:01:14]}  Bf6 {[%clk 0:01:36]} 24. f3 {[%clk 0:01:13]}  Nd6 {[%clk 0:01:36]} 25. Rd1 {[%clk 0:01:08]}  Nb5 {[%clk 0:01:31]} 26. f4 {[%clk 0:01:03]}  Rd8 {[%clk 0:01:30]} 27. Kf2 {[%clk 0:01:02]}  Bxe5 {[%clk 0:01:24]} 28. fxe5 {[%clk 0:00:59]}  Kf7 {[%clk 0:01:14]} 29. Ke3 {[%clk 0:00:56]}  g5 {[%clk 0:01:11]} 30. g3 {[%clk 0:00:55]}  h5 {[%clk 0:01:06]} 31. Rd2 {[%clk 0:00:54]}  b6 {[%clk 0:01:03]} 32. a4 {[%clk 0:00:51]}  Nc7 {[%clk 0:01:03]} 33. c4 {[%clk 0:00:50]}  Na6 {[%clk 0:00:54]} 34. Bc3 {[%clk 0:00:49]}  Rxd2 {[%clk 0:00:53]} 35. Bxd2 {[%clk 0:00:50]}  Nc5 {[%clk 0:00:53]} 36. a5 {[%clk 0:00:49]}  Ne4 {[%clk 0:00:46]} 37. axb6 {[%clk 0:00:47]}  axb6 {[%clk 0:00:46]} 38. Be1 {[%clk 0:00:47]}  Ke7 {[%clk 0:00:47]} 39. g4 {[%clk 0:00:45]}  hxg4 {[%clk 0:00:43]} 40. hxg4 {[%clk 0:00:46]}  Kd7 {[%clk 0:00:43]} 41. b4 {[%clk 0:00:43]}  Kc6 {[%clk 0:00:42]} 42. Kd4 {[%clk 0:00:41]}  b5 {[%clk 0:00:41]} 43. c5 {[%clk 0:00:39]}  Kd7 {[%clk 0:00:22]} 44. gxf5 {[%clk 0:00:38]}  exf5 {[%clk 0:00:22]} 45. Kd5 {[%clk 0:00:37]}  g4 {[%clk 0:00:20]} 46. e6+ {[%clk 0:00:33]}  Ke8 {[%clk 0:00:15]} 47. c6 {[%clk 0:00:32]}  Nf6+ {[%clk 0:00:07]} 48. Ke5 {[%clk 0:00:29]} 1-0


[Site "https://www.chess.com"]

[Event "Titled Tuesday Blitz November 29 Late 2022"]
[White "Novikova, Galina"]
[Black "Sztokbant, Bernardo Vainzoff"]
[WhiteFideId "4157095"]
[BlackFideId "2115956"]
[WhiteElo "1973"]
[BlackElo "2228"]
[Result "0-1"]
[Round "06"]
[TimeControl "180+1"]
[Date "2022.11.30"]
[WhiteClock "0:00:02"]
[BlackClock "0:00:01"]

1. e4 {[%clk 0:03:00]}  c5 {[%clk 0:03:00]} 2. Nf3 {[%clk 0:03:00]}  d6 {[%clk 0:03:00]} 3. d4 {[%clk 0:03:00]}  cxd4 {[%clk 0:03:01]} 4. Nxd4 {[%clk 0:03:01]}  Nf6 {[%clk 0:03:02]} 5. Nc3 {[%clk 0:03:01]}  a6 {[%clk 0:03:02]} 6. h3 {[%clk 0:03:02]}  e5 {[%clk 0:03:02]} 7. Nde2 {[%clk 0:03:02]}  Be7 {[%clk 0:03:02]} 8. g4 {[%clk 0:03:03]}  Be6 {[%clk 0:03:02]} 9. Bg2 {[%clk 0:03:03]}  Nbd7 {[%clk 0:02:58]} 10. Ng3 {[%clk 0:03:03]}  b5 {[%clk 0:02:53]} 11. Nd5 {[%clk 0:03:00]}  Bxd5 {[%clk 0:02:51]} 12. exd5 {[%clk 0:03:01]}  Nb6 {[%clk 0:02:50]} 13. O-O {[%clk 0:02:43]}  Rc8 {[%clk 0:02:40]} 14. g5 {[%clk 0:02:42]}  Nfd7 {[%clk 0:02:37]} 15. h4 {[%clk 0:02:42]}  Qc7 {[%clk 0:02:36]} 16. c3 {[%clk 0:02:40]}  g6 {[%clk 0:02:34]} 17. f4 {[%clk 0:02:36]}  exf4 {[%clk 0:02:24]} 18. Bxf4 {[%clk 0:02:34]}  Nc4 {[%clk 0:02:22]} 19. b3 {[%clk 0:02:06]}  Nce5 {[%clk 0:02:22]} 20. Rc1 {[%clk 0:01:59]}  O-O {[%clk 0:02:21]} 21. h5 {[%clk 0:01:46]}  Nc5 {[%clk 0:02:14]} 22. Bxe5 {[%clk 0:01:01]}  dxe5 {[%clk 0:02:15]} 23. Qg4 {[%clk 0:01:01]}  Nd3 {[%clk 0:02:05]} 24. Rc2 {[%clk 0:00:52]}  Nf4 {[%clk 0:02:01]} 25. c4 {[%clk 0:00:43]}  bxc4 {[%clk 0:01:49]} 26. bxc4 {[%clk 0:00:43]}  f5 {[%clk 0:01:14]} 27. gxf6 {[%clk 0:00:40]}  Rxf6 {[%clk 0:01:15]} 28. Ne4 {[%clk 0:00:35]}  Rcf8 {[%clk 0:00:54]} 29. c5 {[%clk 0:00:29]}  Nxd5 {[%clk 0:00:38]} 30. Nxf6+ {[%clk 0:00:22]}  Nxf6 {[%clk 0:00:39]} 31. Qe6+ {[%clk 0:00:22]}  Kg7 {[%clk 0:00:35]} 32. hxg6 {[%clk 0:00:23]}  hxg6 {[%clk 0:00:27]} 33. c6 {[%clk 0:00:20]}  Qa7+ {[%clk 0:00:20]} 34. Rff2 {[%clk 0:00:06]}  Bc5 {[%clk 0:00:16]} 35. c7 {[%clk 0:00:05]}  Bxf2+ {[%clk 0:00:15]} 36. Rxf2 {[%clk 0:00:06]}  Qxc7 {[%clk 0:00:12]} 37. Re2 {[%clk 0:00:04]}  Qa7+ {[%clk 0:00:11]} 38. Kh2 {[%clk 0:00:02]}  Rh8+ {[%clk 0:00:08]} 39. Bh3 {[%clk 0:00:02]}  Qc7 {[%clk 0:00:04]} 40. Rxe5 {[%clk 0:00:02]}  Rh5 {[%clk 0:00:01]} 0-1


[Site "https://www.chess.com"]

[Event "Titled Tuesday Blitz November 29 Late 2022"]
[White "Nugumanov, Bakhtiyar"]
[Black "Graif, William"]
[WhiteFideId "13701797"]
[BlackFideId "2609835"]
[WhiteElo "2287"]
[BlackElo "2205"]
[Result "1-0"]
[Round "06"]
[TimeControl "180+1"]
[Date "2022.11.30"]
[WhiteClock "0:00:50"]
[BlackClock "0:00:12"]

1. d4 {[%clk 0:02:57]}  Nf6 {[%clk 0:02:58]} 2. c4 {[%clk 0:02:57]}  e5 {[%clk 0:02:57]} 3. dxe5 {[%clk 0:02:56]}  Ng4 {[%clk 0:02:57]} 4. Nf3 {[%clk 0:02:51]}  Nc6 {[%clk 0:02:56]} 5. Bf4 {[%clk 0:02:47]}  f6 {[%clk 0:02:57]} 6. h3 {[%clk 0:02:17]}  Ngxe5 {[%clk 0:02:51]} 7. e3 {[%clk 0:02:10]}  Bb4+ {[%clk 0:02:45]} 8. Nbd2 {[%clk 0:02:08]}  d5 {[%clk 0:02:26]} 9. Nxe5 {[%clk 0:01:41]}  fxe5 {[%clk 0:02:18]} 10. Bg3 {[%clk 0:01:42]}  d4 {[%clk 0:01:48]} 11. a3 {[%clk 0:01:41]}  dxe3 {[%clk 0:01:41]} 12. axb4 {[%clk 0:01:40]}  exd2+ {[%clk 0:01:37]} 13. Qxd2 {[%clk 0:01:41]}  Qxd2+ {[%clk 0:01:32]} 14. Kxd2 {[%clk 0:01:42]}  Nxb4 {[%clk 0:01:11]} 15. Bxe5 {[%clk 0:01:42]}  O-O {[%clk 0:01:11]} 16. f3 {[%clk 0:01:26]}  Be6 {[%clk 0:00:37]} 17. Kc3 {[%clk 0:01:24]}  Na6 {[%clk 0:00:19]} 18. b4 {[%clk 0:01:15]}  c6 {[%clk 0:00:19]} 19. Bd3 {[%clk 0:01:11]}  Rfe8 {[%clk 0:00:19]} 20. f4 {[%clk 0:01:10]}  Rac8 {[%clk 0:00:16]} 21. Be4 {[%clk 0:01:04]}  b5 {[%clk 0:00:15]} 22. Rxa6 {[%clk 0:01:04]}  Bxc4 {[%clk 0:00:15]} 23. Rxa7 {[%clk 0:01:03]}  c5 {[%clk 0:00:14]} 24. Rxg7+ {[%clk 0:01:01]}  Kf8 {[%clk 0:00:14]} 25. Rxh7 {[%clk 0:00:56]}  cxb4+ {[%clk 0:00:14]} 26. Kxb4 {[%clk 0:00:56]}  Bg8 {[%clk 0:00:14]} 27. Bd6+ {[%clk 0:00:56]}  Re7 {[%clk 0:00:13]} 28. Bxe7+ {[%clk 0:00:49]}  Ke8 {[%clk 0:00:13]} 29. Bg6+ {[%clk 0:00:49]}  Kd7 {[%clk 0:00:13]} 30. Bf5+ {[%clk 0:00:49]}  Ke8 {[%clk 0:00:11]} 31. Bxc8 {[%clk 0:00:49]}  Bxh7 {[%clk 0:00:12]} 32. Re1 {[%clk 0:00:50]} 1-0


[Site "https://www.chess.com"]